Cogmind - Beta 11.1 @@@ ROGUE MODE // 2022.10.17 @ 16:10:55 Player: ampersand Result: Destroyed by G-47 Trooper with Particle Gun Performance ------------- Evolutions (2) 1000 Regions Visited (4) 800 Robots Destroyed (33) 165 Value Destroyed (792) 792 Prototype IDs (2) 40 Alien Tech Used (0) 0 Bonus (126) 126 TOTAL SCORE: 2923 Bonus ------- Follower Combat Kills 126 Cogmind --------- Core Integrity 0/550 Matter 290/300 Energy 94/100 System Corruption 0% Temperature Cool (9) Movement Core (50) Location -8/Materials Parts ------- > --- POWER (1) -------- (None) > --- PROPULSION (3) --- (None) > --- UTILITY (5) ------ Signal Interpreter Targeting Computer > --- WEAPON (2) ------- (None) > --- INVENTORY (5) ---- Armored Treads Dynamic Insulation System Improved Trap Extractor (0/6) Beam Rifle Improved Assault Rifle Peak State ------------ > --- POWER ------------ Light Ion Engine > --- PROPULSION ------- Light Treads Light Treads Wheel > --- UTILITY ---------- Small Storage Unit Experimental Sensor Array Signal Interpreter Medium Armor Plating Improved Trap Extractor > --- WEAPON ----------- Improved Assault Rifle Improved Assault Rifle > --- INVENTORY -------- Ion Engine Wheel Wheel Medium Armor Plating Dynamic Insulation System Improved Assault Rifle Improved Assault Rifle Improved Assault Rifle [Rating: 28] Favorites ----------- Power Light Ion Engine Engine Light Ion Engine Power Core Light Nuclear Core Propulsion Light Treads Treads Light Treads Wheel Wheel Flight Unit Surge Thruster Utility Small Storage Unit Device Terrain Scanner Storage Small Storage Unit Processor Signal Interpreter Protection Medium Armor Plating Weapon Improved Assault Rifle Energy Gun Medium Laser Ballistic Gun Improved Assault Rifle Launcher Concussive RPG Slashing Weapon Blade Saw Build | -11 -10 -10 -9 -8 ------- Run | Scr Mat Min Mat Mat Slots Evolved 4 | . . . 2 2 Power . | . . . . . Propulsion 1 | . . . 1 . Utility 3 | . . . 1 2 Weapon . | . . . . . Parts Attached 46 | 6 . 4 9 27 Power 3 | 1 . . . 2 Engine 2 | 1 . . . 1 Core 1 | . . . . 1 Reactor . | . . . . . Propulsion 15 | 2 . . 1 12 Treads 6 | 2 . . . 4 Leg . | . . . . . Wheel 5 | . . . 1 4 Hover . | . . . . . Flight 4 | . . . . 4 Utility 12 | 1 . 2 5 4 Device 4 | . . 2 1 1 Storage 2 | 1 . . 1 . Processor 2 | . . . 1 1 Hackware . | . . . . . Protection 4 | . . . 2 2 Artifact . | . . . . . Weapon 16 | 2 . 2 3 9 Energy Gun 4 | 2 . 1 . 1 Energy Cannon . | . . . . . Ballistic Gun 9 | . . 1 3 5 Ballistic Cannon . | . . . . . Launcher 1 | . . . . 1 Special Weapon . | . . . . . Impact Weapon . | . . . . . Slashing Weapon 2 | . . . . 2 Piercing Weapon . | . . . . . Special Melee Weapon . | . . . . . Unidentified Prototypes 2 | . . 1 1 . Parts Lost 21 | . . 1 . 20 Power 2 | . . . . 2 Propulsion 7 | . . . . 7 Utility 4 | . . . . 4 Weapon 8 | . . 1 . 7 Highest Loss Streak 10 | . . 1 . 10 To Critical Strikes . | . . . . . Average Slot Usage (%) 91 | . 85 95 95 80 Engine 11 | . 14 14 11 5 Treads 22 | . 28 28 22 11 Wheel 4 | . . . 10 7 Device 10 | . . 9 13 10 Storage 11 | . 14 14 11 8 Processor 3 | . . . 3 10 Protection 1 | . . . 1 5 Energy Gun 11 | . 28 21 . 1 Ballistic Gun 11 | . . 6 21 14 Naked Turns . | . . . . . Heaviest Build 29 | 12 12 13 22 29 Greatest Support 40 | 40 40 40 40 40 Greatest Overweight (x) 5 | 3 . . . 5 Average Overweight (x) . | . . . . . Largest Inventory Capacity 8 | 8 8 8 8 8 Average Capacity 7 | 7 8 8 8 7 Most Carried 8 | 7 8 8 8 8 Average Carried 7 | 4 7 7 7 6 Final Capacity 8 | 8 8 8 8 5 Final Carried 8 | 7 8 7 8 5 Class Distribution -------------------- 95% | Mutant 4% | Scavenger-Mutant Dominant Class ---------------- Mutant | -10/Materials Mutant | -10/Mines Mutant | -9/Materials Mutant | -8/Materials Resources | -11 -10 -10 -9 -8 ----------- Run | Scr Mat Min Mat Mat Matter Collected 889 | 260 . 161 73 395 Remotely . | . . . . . Salvage Created 1259 | 99 . 427 28 705 Parts 87 | 2 . 36 . 49 Haulers Intercepted . | . . . . . Recyclers Shooed 2 | . . . . 2 Parts Field Recycled . | . . . . . Retrieved Matter . | . . . . . Parts Self-Destructed . | . . . . . Prevented . | . . . . . Kills | -11 -10 -10 -9 -8 ------- Run | Scr Mat Min Mat Mat Combat Hostiles Destroyed 22 | . . 8 1 13 Guns 21 | . . 8 1 12 AOE 1 | . . . . 1 Classes Destroyed 9 | 1 . 4 . 4 Worker 4 | . . 3 . 1 Builder 1 | . . 1 . . Recycler 4 | 1 . 2 . 1 Watcher 2 | . . . . 2 Swarmer 6 | . . 6 . . Cutter 3 | . . . . 3 Grunt 10 | . . 2 1 7 Sentry 2 | . . . . 2 Heavy 1 | . . . . 1 Best Kill Streak 4 | 1 . 4 1 4 Combat Bots Only 4 | . . 3 1 4 Max Kills in Single Turn 2 | 1 . 1 1 2 Gunslinging 1 | . . . . 1 Exploded 1 | . . . . 1 Melee . | . . . . . Uniques/NPCs Destroyed . | . . . . . Combat | -11 -10 -10 -9 -8 -------- Run | Scr Mat Min Mat Mat Damage Taken 2912 | . . 410 45 2457 Core 631 | . . 60 11 560 Absorbed by Shields . | . . . . . Regen/Repaired (Parts) 118 | . . . 11 107 Core Remaining (%) 91 | 100 . 76 97 . Volleys Fired 86 | 2 . 29 5 50 Largest 2 | 2 . 2 2 2 Hottest 90 | 90 . 90 46 88 Shots Fired 161 | 4 . 56 10 91 Gun 160 | 4 . 56 10 90 Cannon . | . . . . . Launcher 1 | . . . . 1 Special . | . . . . . Kinetic 106 | . . 21 10 75 Thermal 41 | 2 . 24 . 15 Explosive 1 | . . . . 1 Electromagnetic 13 | 2 . 11 . . Robot Hit Streak 21 | 1 . 10 5 21 Robot Miss Streak 7 | 2 . 5 1 7 Penetration Max . | . . . . . Secondary Targets 8 | . . 3 . 5 Max Gunslinging Chain 1 | . . 1 . 1 Shots Hit Robots 106 | 1 . 29 6 70 Core Hits 61 | 1 . 19 2 39 Critical Kills . | . . . . . Critical Parts Destroyed 1 | . . . . 1 Critical Strikes 4 | . . 1 . 3 Burn 1 | . . 1 . . Destroy 1 | . . . . 1 Sever 2 | . . . . 2 Melee Attacks 6 | . . . . 6 Impact . | . . . . . Slashing 6 | . . . . 6 Piercing . | . . . . . Sneak Attacks . | . . . . . Combat Hostiles . | . . . . . Follow-up Attacks 1 | . . . . 1 Damage Inflicted 1580 | 15 . 345 82 1138 Guns 1448 | 15 . 345 82 1006 Cannons 13 | . . . . 13 Explosions 52 | . . . . 52 Melee 67 | . . . . 67 Ramming . | . . . . . Kinetic 1020 | . . 84 82 854 Thermal 334 | . . 182 . 152 Explosive 52 | . . . . 52 Electromagnetic 94 | 15 . 79 . . Impact 13 | . . . . 13 Slashing 67 | . . . . 67 Piercing . | . . . . . Highest Corruption . | . . . . . Average Corruption . | . . . . . Corruption Purged . | . . . . . Corruption Blocked . | . . . . . Overload Shots . | . . . . . Overflow Damage . | . . . . . Projectiles . | . . . . . Explosions . | . . . . . Melee . | . . . . . Knockbacks . | . . . . . Impact . | . . . . . Kinetic . | . . . . . Secondary . | . . . . . Self-Inflicted Damage 28 | . . . . 28 Shots 1 | . . . . 1 Rammed . | . . . . . Targets Rammed . | . . . . . Kicked . | . . . . . Crushed . | . . . . . Highest Temperature 225 | 60 . 213 . 225 Average Temperature 64 | 30 . 60 . 72 Received Heat Transfer 1155 | . . 177 24 954 Siege Activations . | . . . . . Robots Corrupted . | . . . . . Combat Hostiles . | . . . . . Parts Fried . | . . . . . Impact Corruptions . | . . . . . Robots Melted . | . . . . . Combat Hostiles . | . . . . . Parts Melted 2 | . . 1 . 1 Heat Transferred 904 | . . 534 . 370 Parts Sabotaged . | . . . . . Parts Stolen . | . . . . . Parts Stripped . | . . . . . Power Chain Reactions . | . . . . . Missiles Intercepted . | . . . . . Alert | -11 -10 -10 -9 -8 ------- Run | Scr Mat Min Mat Mat Peak Influence 346 | 5 3 215 134 346 Initial 47 | . 3 . 47 2 Average 64 | 2 3 55 72 97 Maximum Alert Level 1 | . . 1 . 1 Low Security (%) 90 | 100 100 89 100 79 Level 1 9 | . . 10 . 20 Level 2 . | . . . . . Level 3 . | . . . . . Level 4 . | . . . . . Level 5 . | . . . . . High Security . | . . . . . Max Security . | . . . . . Squads Dispatched 4 | . . . 1 3 Investigation . | . . . . . Extermination . | . . . . . Reinforcement 4 | . . . 1 3 Assault . | . . . . . Garrison . | . . . . . Intercept . | . . . . . Searches Triggered . | . . . . . Construction Impeded . | . . . . . Haulers Reinforced . | . . . . . Active Scanning Responses . | . . . . . Cargo Convoy Interrupts . | . . . . . Stealth | -11 -10 -10 -9 -8 --------- Run | Scr Mat Min Mat Mat Distress Signals 2 | . . . . 2 Communications Jammed . | . . . . . Distress Signals . | . . . . . Times Spotted 45 | . 1 10 5 29 Peak Tracking Total 10 | . 1 3 2 10 Tactical Retreats 6 | . . . . 6 Traps | -11 -10 -10 -9 -8 ------- Run | Scr Mat Min Mat Mat Traps Triggered . | . . . . . Indirectly . | . . . . . Trap Hack Attempts . | . . . . . Triggered . | . . . . . Disarmed . | . . . . . Reprogrammed . | . . . . . Reused . | . . . . . Traps Extracted . | . . . . . Installed . | . . . . . Triggered . | . . . . . Machines | -11 -10 -10 -9 -8 ---------- Run | Scr Mat Min Mat Mat Machines Disabled . | . . . . . Max in Single Turn . | . . . . . Machines Sabotaged . | . . . . . Garrisons Compromised . | . . . . . Overloaded Fab Kills . | . . . . . Hacking | -11 -10 -10 -9 -8 --------- Run | Scr Mat Min Mat Mat Machines Accessed 4 | . 1 . 2 1 Terminals 2 | . 1 . 1 . Fabricators . | . . . . . Repair Stations 2 | . . . 1 1 Recycling Units . | . . . . . Scanalyzers . | . . . . . Garrison Access . | . . . . . Total Hacks 11 | . 2 . 7 2 Successful 9 | . 1 . 6 2 Failed 2 | . 1 . 1 . Catastrophic . | . . . . . Database Lockouts . | . . . . . Manual 4 | . 2 . 2 . Terminals 6 | . 2 . 4 . Fabricators . | . . . . . Repair Stations 5 | . . . 3 2 Recycling Units . | . . . . . Scanalyzers . | . . . . . Garrison Access . | . . . . . Terminal Hacks 3 | . . . 3 . Record 1 | . . . 1 . Alert Level 1 | . . . 1 . Unreport Threat 1 | . . . 1 . Fabricator Hacks . | . . . . . Repair Station Hacks 4 | . . . 2 2 Scan Component 2 | . . . 1 1 Repair 2 | . . . 1 1 Recycling Unit Hacks . | . . . . . Scanalyzer . | . . . . . Garrison Access Hacks . | . . . . . Unauthorized Hacks 2 | . 1 . 1 . Terminals 2 | . 1 . 1 . Botnet 2 | . 1 . 1 . Fabricators . | . . . . . Repair Stations . | . . . . . Recycling Units . | . . . . . Scanalyzers . | . . . . . Garrison Access . | . . . . . Data Cores Recovered . | . . . . . Used . | . . . . . Hacking Detections 4 | . 1 . 2 1 Full Trace Events . | . . . . . Feedback Events . | . . . . . Feedback Blocked . | . . . . . Robot Schematics Acquired . | . . . . . Robots Built . | . . . . . Authchips . | . . . . . Time . | . . . . . Total Robot Build Rating . | . . . . . Part Schematics Acquired . | . . . . . Parts Built . | . . . . . Authchips . | . . . . . Time . | . . . . . Total Part Build Rating . | . . . . . Parts Repaired 2 | . . . 1 1 Time 134 | . . . 108 26 Parts Recycled . | . . . . . Recycled Matter . | . . . . . Retrieved Matter . | . . . . . Retrieved Components . | . . . . . Parts Scanalyzed . | . . . . . Part Schematics Acquired . | . . . . . Parts Damaged . | . . . . . Bothacking | -11 -10 -10 -9 -8 ------------ Run | Scr Mat Min Mat Mat Used RIF Installer . | . . . . . Robots Hacked . | . . . . . Non-combat . | . . . . . Combat . | . . . . . Robot Hacks Applied . | . . . . . Relay Couplers Released . | . . . . . Fabnet Peak Effective % . | . . . . . Robots Rewired . | . . . . . Allies Hacked . | . . . . . Hacks Repelled . | . . . . . Allies | -11 -10 -10 -9 -8 -------- Run | Scr Mat Min Mat Mat Total Allies 3 | . . 3 . . Largest Group 3 | . . 3 3 2 Highest-Rated Group 40 | . . 40 40 32 Highest-Rated Ally 16 | . . 16 16 16 Total Orders 5 | . . 5 . . FOLLOW 3 | . . 3 . . GUARD 2 | . . 2 . . Ally Attacks 36 | . . 8 10 18 Total Damage 423 | . . 101 111 211 Kills 6 | . . 2 3 1 Allies Corrupted . | . . . . . Allies Melted . | . . . . . Intel | -11 -10 -10 -9 -8 ------- Run | Scr Mat Min Mat Mat Robot Analysis Total . | . . . . . Derelict Logs Recovered 1 | . . 1 . . Drone Launches . | . . . . . Drone Recoveries . | . . . . . Exploration | -11 -10 -10 -9 -8 ------------- Run | Scr Mat Min Mat Mat Turns Passed 2125 | 115 78 946 506 480 Spaces Moved 1034 | 61 49 530 229 165 Core 16 | 13 . . . 3 Treads 975 | 48 49 530 229 119 Legs . | . . . . . Wheels 27 | . . . . 27 Hover . | . . . . . Flight 16 | . . . . 16 Fastest Speed 29 | 50 160 160 160 29 Average Speed 156 | 151 160 160 160 142 Slowest Speed 255 | 200 160 160 160 255 Overloaded Moves . | . . . . . Propulsion Burnouts . | . . . . . Robots Hopped . | . . . . . Cave-ins Triggered . | . . . . . Exploration Rate (%) 30 | 3 11 95 26 16 Regions Visited 4 Branch Regions 1 Pre-discovered Areas 1 | . . 1 . . Known Exits Taken 1 | . . . 1 . Unknown Exits Taken 3 | 1 1 1 . . Scrap Searched 1 | . . 1 . . Spaces Dug . | . . . . . Terrain Destroyed 6 | . . . . 6 Melee . | . . . . . Projectile . | . . . . . AOE 6 | . . . . 6 Terrain Rammed . | . . . . . Walls Destroyed . | . . . . . Machines Disabled . | . . . . . Actions | -11 -10 -10 -9 -8 --------- Run | Scr Mat Min Mat Mat Total 1366 | 78 49 578 359 302 Wait 157 | . . 5 104 48 Move 1030 | 60 48 529 228 165 Hop . | . . . . . Pick Up 27 | 10 1 4 7 5 Fast Attach 21 | 3 . 3 3 12 Attach 16 | 3 . 1 3 9 Detach 2 | . . 1 . 1 Swap 9 | . . . 3 6 Drop 13 | . . 6 6 1 Fire 86 | 2 . 29 5 50 Melee 5 | . . . . 5 Ram . | . . . . . Kick . | . . . . . Crush . | . . . . . Escape Stasis . | . . . . . Rewire . | . . . . . Trap . | . . . . . Miscellaneous . | . . . . . Route ------- -11/Scrapyard -10/Materials -10/Mines (discovered 2 exits: *Mat x2) -9/Materials -8/Materials (discovered 1 exit: [*Fac]) History --------- Turn | Location | Event 9 | -11/Scrapyard | Discovered new exit (range 16) 116 | -11/Scrapyard | Entered Materials 155 | -10/Materials | Discovered new exit (range 6) 194 | -10/Materials | Entered Mines 307 | -10/Mines | Build established: Mutant 463 | -10/Mines | Found a damaged Exp. Sensor Array with a note attached 469 | -10/Mines | Found Prototype Device 469 | -10/Mines | Identified Exp. Sensor Array 532 | -10/Mines | Learned Materials emergency access door positions 831 | -10/Mines | Discovered new exit (range 13) 832 | -10/Mines | Learned location of Storage (-8) 949 | -10/Mines | Assisted by bots powering up and referring to "LRC-V3" 1112 | -10/Mines | Discovered new exit (range 10) 1140 | -10/Mines | Entered Materials 1140 | -9/Materials | Accompanied by 3 allies 1140 | -9/Materials | Evolved 2 slots: Propulsion x1, Utility x1 1296 | -9/Materials | Repaired Exp. Sensor Array 1504 | -9/Materials | Discovered new exit (range 11) 1518 | -9/Materials | Identified exit to Materials 1646 | -9/Materials | Entered another Materials area 1646 | -8/Materials | Accompanied by 2 allies 1646 | -8/Materials | Evolved 2 slots: Utility x2 1797 | -8/Materials | Repaired Lgt. Treads 1994 | -8/Materials | Core integrity fell below 50% 2029 | -8/Materials | Lost 6 parts (2n1u3w) 2072 | -8/Materials | Discovered new exit (range 15) 2105 | -8/Materials | Core integrity fell below 20% 2126 | -8/Materials | Destroyed by G-47 Trooper with Particle Gun Last Messages --------------- K-01 Serf collects debris. Acquired Blade Saw. Acquired Concussive RPG. Lgt. Nuclear Core destroyed. Acquired 11 matter. Surge Thruster destroyed. G-47 Trooper Particle Gun severed. Blade Saw follow-up attack on G-47 Trooper. Blade Saw destroyed. Surge Thruster destroyed. Y-45 Defender Lgt. Treads severed. Surge Thruster destroyed. Critical hit (Burn: +37). Blade Saw destroyed. Concussive RPG expended. Knocked back. Y-45 Defender destroyed. R-06 Scavenger knocked back. Acquired Beam Rifle. [Achievement: Just Browsing] Map ----- +----------------------------------------------------+ | ????????????????????????????????# | | ????????????????????????#???????# | | ????????????????????????#+####### | | ????????????????????????? # ############## | | ????????????????????????? """ # ####?????????? | | ?????????????????????????""""" # # #?????????? | | ?????????????????????????""""" + #?????????? | | ?????????????????????????""""" # # ##?????????? | | ???????????????????????? """ # ###??????????? | | ??????????????????????? # #????????????? | | ??????????????????????# # #????????????? | | ??????????????????????########### #????????????? | | ????????????????????????????????# #????????????? | | ????????????????????????????????# #????????????? | | ????????????????????????????????# #????????????? | | ????????????????????????????????# #????????????? | | ?????????????????????????######## #????????????? | | ?????????????????????????# # #????????????? | | ?????????????????????????# """! # #????????????? | | ????????????# !?????????#="""!!# #????????????? | | ????????????# ######*"""*!# #????????????? | | ????????????# == /% %+==]! #= #????????????? | | ????????????# = ######!* * #! #????????????? | | ??????????#################%[ ### ! ############## | | ??????????# ! *%=g! % % % | | ??????????# < @ != r | | ??????????# *[%|= | | ??????????####+########### ## ###+############## | | ?????????????????????????######## #???????? | | ????????????????????????????????#""" #???????? | | ????????????????????????????????#"R #???????? | | ????????????????????????????????#""" #???????? | | ????????????????????????????????# #???????? | | ????????????????????????????????# """ #???????? | | ????????????????????????????????# """ #???????? | | ????????????????????????????????# """ #???????? | | ????????????????????????????????# #???????? | | ????????????????????????????????##########???????? | | ?????????????????????????????????????????????????? | | ?????????????????????????????????????????????????? | | ?????????????????????????????????????????????????? | | ?????????????????????????????????????????????????? | | ?????????????????????????????????????????????????? | | ?????????????????????????????????????????????????? | | ?????????????????????????????????????????????????? | | ?????????????????????????????????????????????????? | | ?????????????????????????????????????????????????? | | ?????????????????????????????????????????????????? | | ?????????????????????????????????????????????????? | | ?????????????????????????????????????????????????? | +----------------------------------------------------+ Best States ------------- Heat Dissipation 31 Energy Generation 14 Energy Capacity 250 Matter Stores 300 Matter Capacity 300 Sight Range 16 Robot Scan Range 20 Terrain Scan Range 14 Terrain Scan Density 10 Armor Coverage 450 Evasion (%) 50 Targeting Accuracy 5 Recoil Reduction 2 Trap Extractor Capacity 6 Item Schematics ----------------- None Robot Schematics ------------------ None Fabricated ------------ Nothing Alien Tech Used ----------------- None Achievements -------------- Just Browsing Challenges ------------ None Game ------ Seed SegregatorReactiveActivator Manual? 0 Play Time 00:25:17 Cumulative 15.5 hours Start 2022.10.14 @ 00:58:55 End 2022.10.17 @ 16:10:55 Sessions 2 Manual Loads 0 Difficulty Rogue Special Mode None Game No. 14 Rogue 13 Adventurer 0 Explorer 1 Win Type - Total 0 Types 0/0/0/0/0/0/0/0/0 Lore% 19 Gallery% 25 Achievement% 22 Wizard Run 0 Options --------- ASCII 0 Keyboard 0 Movement Numpad Keybinds 0 Fullscreen 0 Font 12/Terminus Map View 75x55 Tactical HUD 0 Map Filters NONE Filters NONE Steam 1 RUN: e77b8f0f-a45c-4685-8405-55f2aacbde60